Cogmind - Beta 17 @@@ ROGUE MODE // 2026.08.12 @ 21:20:41 Player: Marc Result: Destroyed by Explosive Trap Performance ------------- Evolutions (2) 1000 Regions Visited (4) 800 Robots Destroyed (9) 45 Value Destroyed (375) 375 Prototype IDs (1) 20 Alien Tech Used (0) 0 Bonus (70) 70 TOTAL SCORE: 2310 Bonus ------- Follower Combat Kills 70 Cogmind --------- Core Integrity 0/550 Matter 285/300 Energy 85/100 System Corruption 0% Temperature Cool (0) Movement Core (50) Location -8/Storage Parts ------- > --- POWER (1) -------- (None) > --- PROPULSION (4) --- (None) > --- UTILITY (4) ------ Improved Signal Interpreter Hacking Suite > --- WEAPON (2) ------- (None) > --- INVENTORY (5) ---- Improved Ion Engine Nuclear Core F-cell Engine Melee Analysis Suite Reaction Control System Peak State ------------ > --- POWER ------------ Ion Engine > --- PROPULSION ------- Carbon-fiber Leg Carbon-fiber Leg Carbon-fiber Leg > --- UTILITY ---------- Improved Signal Interpreter > --- WEAPON ----------- Mining Claw Mining Claw > --- INVENTORY -------- Flight Unit [Rating: 15] Favorites ----------- Power Ion Engine Engine Ion Engine Power Core Light Nuclear Core Propulsion Aluminum Leg Leg Aluminum Leg Flight Unit Flight Unit Utility Improved Signal Interpreter Device Sensor Array Storage Small Storage Unit Processor Improved Signal Interpreter Hackware Hacking Suite Weapon Mining Claw Energy Gun Medium Laser Slashing Weapon Mining Claw Build | -11 -10 -9 -8 -8 ------- Run | Yrd Mat Mat Mat Sto Slots Evolved 4 | . . 2 2 . Power . | . . . . . Propulsion 2 | . . 1 1 . Utility 2 | . . 1 1 . Weapon . | . . . . . Parts Attached 26 | . 9 6 8 3 Power 4 | . 2 . 2 . Engine 3 | . 2 . 1 . Core 1 | . . . 1 . Reactor . | . . . . . Propulsion 9 | . 2 4 3 . Treads . | . . . . . Leg 7 | . 2 3 2 . Wheel . | . . . . . Hover . | . . . . . Flight 2 | . . 1 1 . Utility 5 | . . 2 1 2 Device 2 | . . 1 . 1 Storage . | . . . . . Processor 2 | . . 1 1 . Hackware 1 | . . . . 1 Protection . | . . . . . Artifact . | . . . . . Weapon 8 | . 5 . 2 1 Energy Gun 2 | . 1 . . 1 Energy Cannon . | . . . . . Ballistic Gun . | . . . . . Ballistic Cannon . | . . . . . Launcher . | . . . . . Special Weapon . | . . . . . Impact Weapon . | . . . . . Slashing Weapon 6 | . 4 . 2 . Piercing Weapon . | . . . . . Special Melee Weapon . | . . . . . Unidentified Prototypes 1 | . . . 1 . Parts Lost 13 | . 1 2 4 6 Power 3 | . 1 . 2 . Propulsion 5 | . . 2 2 1 Utility 2 | . . . . 2 Weapon 3 | . . . . 3 Highest Loss Streak 4 | . 1 2 4 3 To Critical Strikes . | . . . . . Average Backups 4 | . 5 3 2 4 Power . | . 1 1 . 1 Propulsion . | . 2 . . . Utility . | . . . 1 2 Weapon 1 | . 2 2 . . Tool/Special . | . . . . . Unused Backups 7 | . 2 . . 5 Power 3 | . . . . 3 Propulsion . | . . . . . Utility 2 | . . . . 2 Weapon 2 | . 2 . . . Tool/Special . | . . . . . Average Slot Usage (%) 58 | . 80 64 55 32 Engine 6 | . 10 8 4 . Leg 16 | . 27 20 18 . Flight 2 | . . 1 3 4 Device 1 | . . 7 . . Storage 5 | . 14 8 . . Processor 7 | . . 1 12 16 Energy Gun 4 | . 12 . . 2 Slashing Weapon 14 | . 14 17 16 8 Peak Build Rating 15 | . 6 12 15 10 Average Rating 8 | . 5 6 13 8 On Entrance 8 | 6 6 6 12 10 Avg Prop Armor Cover (%) 10 | . . . 10 . Naked Turns . | . . . . . Heaviest Build 15 | 14 14 15 9 5 Greatest Support 45 | 20 20 45 45 4 Greatest Overweight (x) 4 | . 2 4 . 1 Average Overweight (x) . | . . . . . Largest Inventory Capacity 8 | . 8 8 5 5 Average Capacity 6 | . 8 7 5 5 Most Carried 8 | . 8 5 5 5 Average Carried 4 | . 5 3 2 4 Final Capacity 8 | 8 8 5 5 5 Final Carried 6 | 6 4 4 4 5 Class Distribution -------------------- 73% | Mutant 10% | Gladiator 9% | Commander-Gladiator 6% | Commander-Mutant Dominant Class ---------------- Mutant | -10/Materials Mutant | -9/Materials Mutant | -8/Materials Commander-Gladiator | -8/Storage Resources | -11 -10 -9 -8 -8 ----------- Run | Yrd Mat Mat Mat Sto Matter Collected 410 | 200 55 18 100 37 Remotely . | . . . . . Salvage Created 384 | . 75 18 202 89 Parts 21 | . 3 2 9 7 Haulers Intercepted . | . . . . . Recyclers Shooed . | . . . . . Parts Field Recycled . | . . . . . Retrieved Matter . | . . . . . Parts Self-Destructed . | . . . . . Prevented . | . . . . . Parts Restored . | . . . . . Kills | -11 -10 -9 -8 -8 ------- Run | Yrd Mat Mat Mat Sto Combat Hostiles Destroyed 8 | . 2 . 4 2 Melee 6 | . 2 . 4 . Guns 2 | . . . . 2 Classes Destroyed 3 | . 1 1 1 . Operator 1 | . . 1 . . Grunt 6 | . 2 . 3 1 Sentry 2 | . . . 1 1 Best Kill Streak 2 | . 2 1 2 1 Combat Bots Only 2 | . 2 . 2 1 Max Kills in Single Turn 1 | . 1 1 1 1 Gunslinging . | . . . . . Exploded . | . . . . . Melee 1 | . 1 . 1 . Uniques/NPCs Destroyed . | . . . . . Combat | -11 -10 -9 -8 -8 -------- Run | Yrd Mat Mat Mat Sto Hostile Shots Fired 147 | . 19 32 55 41 Missed 33 | . 1 10 15 7 Hits 114 | . 18 22 40 34 Projectile 114 | . 18 22 40 34 Critical Strikes 5 | . . . 4 1 Damage Taken 1659 | . 260 263 621 515 Core 675 | . 29 96 190 360 Absorbed by Shields 4 | . . . . 4 Core Remaining (%) 88 | 100 88 76 . . Volleys Fired 22 | . . . . 22 Largest 1 | . . . . 1 Hottest 65 | . . . . 65 Shots Fired 22 | . . . . 22 Gun 22 | . . . . 22 Cannon . | . . . . . Launcher . | . . . . . Special . | . . . . . Kinetic . | . . . . . Thermal 22 | . . . . 22 Explosive . | . . . . . Electromagnetic . | . . . . . Robot Hit Streak 3 | . . . . 3 Robot Miss Streak 4 | . . . . 4 Penetration Max . | . . . . . Secondary Targets . | . . . . . Shots Hit Robots 38 | . 10 2 12 14 Core Hits 15 | . 3 . 7 5 Critical Kills . | . . . . . Critical Parts Destroyed . | . . . . . Critical Strikes 1 | . . . . 1 Burn 1 | . . . . 1 Melee Attacks 45 | . 15 2 24 4 Impact . | . . . . . Slashing 45 | . 15 2 24 4 Piercing . | . . . . . Sneak Attacks 1 | . . . . 1 Combat Hostiles 1 | . . . . 1 Follow-up Attacks 5 | . 3 . 2 . Damage Inflicted 848 | . 227 59 284 278 Guns 179 | . . . . 179 Cannons . | . . . . . Explosions . | . . . . . Melee 669 | . 227 59 284 99 Ramming . | . . . . . Kinetic . | . . . . . Thermal 179 | . . . . 179 Explosive . | . . . . . Electromagnetic . | . . . . . Impact . | . . . . . Slashing 669 | . 227 59 284 99 Piercing . | . . . . . Highest Corruption . | . . . . . Average Corruption . | . . . . . Corruption Purged . | . . . . . Corruption Blocked . | . . . . . Overload Shots . | . . . . . Overflow Damage 19 | . . 19 . . Projectiles . | . . . . . Explosions . | . . . . . Melee 19 | . . 19 . . Knockbacks . | . . . . . Impact . | . . . . . Kinetic . | . . . . . Secondary . | . . . . . Self-Inflicted Damage . | . . . . . Shots . | . . . . . Rammed . | . . . . . Targets Rammed . | . . . . . Kicked . | . . . . . Crushed . | . . . . . Highest Temperature 120 | . . . 13 120 Average Temperature 35 | . . . 7 36 Received Heat Transfer 963 | . 150 141 423 249 Siege Activations . | . . . . . Martial Activations . | . . . . . Shielding Activations . | . . . . . Robots Disrupted . | . . . . . Combat Hostiles . | . . . . . Robots Corrupted . | . . . . . Combat Hostiles . | . . . . . Parts Fried . | . . . . . Impact Corruptions . | . . . . . Robots Melted . | . . . . . Combat Hostiles . | . . . . . Parts Melted . | . . . . . Heat Transferred 481 | . . . . 481 Parts Sabotaged . | . . . . . Parts Stolen . | . . . . . Parts Stripped . | . . . . . Power Chain Reactions . | . . . . . Alert | -11 -10 -9 -8 -8 ------- Run | Yrd Mat Mat Mat Sto Maximum Alert Level 1 | . . . . 1 Low Security (%) 94 | . 100 100 100 76 Level 1 5 | . . . . 23 Level 2 . | . . . . . Level 3 . | . . . . . Level 4 . | . . . . . Level 5 . | . . . . . High Security . | . . . . . Max Security . | . . . . . Peak Influence 267 | . 50 105 89 267 Initial 35 | . . 8 35 29 Average 41 | . 6 11 31 121 Influence Increases 843 | . 50 110 191 492 Destroy 0b10 Robot/C 460 | . 40 . 80 340 Destroy 0b10 Robot/NC 5 | . . 5 . . Destroy Leader 130 | . 10 . 20 100 Allied During Kill 7 | . . . . 7 Successful Hack 57 | . . . 42 15 Destroy Structure 4 | . . . 4 . Partial Spotted 30 | . . . . 30 Lose Combat Pursuer 150 | . . 105 45 . Influence Decreases 656 | . 30 45 206 375 Entered New Map 103 | . . 12 50 41 Time Decay 319 | . 30 33 126 130 Lost Part 90 | . . . 30 60 Lost Ally 144 | . . . . 144 Squads Dispatched 9 | . . 2 3 4 Investigation 2 | . . . 1 1 Extermination . | . . . . . Reinforcement 4 | . . 2 . 2 Assault . | . . . . . Garrison 3 | . . . 2 1 Intercept . | . . . . . Searches Triggered . | . . . . . Construction Impeded . | . . . . . Haulers Reinforced . | . . . . . Active Scanning Responses . | . . . . . Cargo Convoy Interrupts . | . . . . . Stealth | -11 -10 -9 -8 -8 --------- Run | Yrd Mat Mat Mat Sto Distress Signals 6 | . . . . 6 Communications Jammed . | . . . . . Distress Signals . | . . . . . Times Spotted 35 | . 3 16 8 8 Peak Tracking Total 8 | . 2 8 5 5 Tactical Retreats 3 | . . 1 2 . Traps | -11 -10 -9 -8 -8 ------- Run | Yrd Mat Mat Mat Sto Traps Triggered 3 | . 2 . . 1 Indirectly . | . . . . . Trap Hack Attempts . | . . . . . Triggered . | . . . . . Disarmed . | . . . . . Reprogrammed . | . . . . . Reused . | . . . . . Traps Extracted . | . . . . . Installed . | . . . . . Triggered . | . . . . . Machines | -11 -10 -9 -8 -8 ---------- Run | Yrd Mat Mat Mat Sto Machines Disabled . | . . . . . Max in Single Turn . | . . . . . Machines Repaired . | . . . . . Machines Dismantled . | . . . . . Machines Sabotaged . | . . . . . Overloaded Fab Kills . | . . . . . Hacking | -11 -10 -9 -8 -8 --------- Run | Yrd Mat Mat Mat Sto Machines Accessed 10 | . 1 1 5 3 Terminals 9 | . 1 1 4 3 Fabricators . | . . . . . Repair Stations . | . . . . . Recycling Units . | . . . . . Scanalyzers . | . . . . . Garrison Access 1 | . . . 1 . Total Hacks 23 | . 3 2 11 7 Successful 16 | . 1 1 9 5 Failed 7 | . 2 1 2 2 Catastrophic . | . . . . . Database Lockouts . | . . . . . Manual 16 | . 3 2 7 4 Terminals 21 | . 3 2 9 7 Fabricators . | . . . . . Repair Stations . | . . . . . Recycling Units . | . . . . . Scanalyzers . | . . . . . Garrison Access 2 | . . . 2 . Terminal Hacks 7 | . . 1 3 3 Open Door 1 | . . . . 1 Locate Traps 2 | . . . 2 . Security Status 1 | . . . . 1 Recall Investigation 1 | . . 1 . . Zone Layout 2 | . . . 1 1 Fabricator Hacks . | . . . . . Repair Station Hacks . | . . . . . Recycling Unit Hacks . | . . . . . Scanalyzer . | . . . . . Garrison Access Hacks 1 | . . . 1 . Coupler Status 1 | . . . 1 . Unauthorized Hacks 8 | . 1 . 5 2 Terminals 7 | . 1 . 4 2 Botnet 7 | . 1 . 4 2 Fabricators . | . . . . . Repair Stations . | . . . . . Recycling Units . | . . . . . Scanalyzers . | . . . . . Garrison Access 1 | . . . 1 . Watchers 1 | . . . 1 . Data Cores Recovered . | . . . . . Used . | . . . . . Hacking Detections 8 | . 1 1 4 2 Full Trace Events 2 | . . . 1 1 Feedback Events . | . . . . . Feedback Blocked . | . . . . . Robot Schematics Acquired . | . . . . . Robots Built . | . . . . . Authchips . | . . . . . Time . | . . . . . Total Robot Build Rating . | . . . . . Part Schematics Acquired . | . . . . . Parts Built . | . . . . . Authchips . | . . . . . Time . | . . . . . Total Part Build Rating . | . . . . . Part Studies Acquired . | . . . . . Parts Repaired . | . . . . . Time . | . . . . . Parts Recycled . | . . . . . Recycled Matter . | . . . . . Retrieved Matter . | . . . . . Retrieved Components . | . . . . . Parts Scanalyzed . | . . . . . Part Schematics Acquired . | . . . . . Parts Damaged . | . . . . . Bothacking | -11 -10 -9 -8 -8 ------------ Run | Yrd Mat Mat Mat Sto Used RIF Installer . | . . . . . Robots Hacked . | . . . . . Non-combat . | . . . . . Combat . | . . . . . Robot Hacks Applied . | . . . . . Relay Couplers Released . | . . . . . Fabnet Peak Effective % . | . . . . . Robots Rewired . | . . . . . Allies Hacked . | . . . . . Hacks Repelled . | . . . . . Allies | -11 -10 -9 -8 -8 -------- Run | Yrd Mat Mat Mat Sto Total Allies 10 | . . . . 10 Largest Group 10 | . . . . 10 Highest-Rated Group 173 | . . . . 173 Highest-Rated Ally 29 | . . . . 29 Total Orders 1 | . . . . 1 ROAM 1 | . . . . 1 Ally Attacks 96 | . . . . 96 Total Damage 1238 | . . . . 1238 Kills 16 | . . . . 16 Allies Corrupted . | . . . . . Allies Melted . | . . . . . Intel | -11 -10 -9 -8 -8 ------- Run | Yrd Mat Mat Mat Sto Active Infowar (turns) 195 | . . 195 . . Sensors 195 | . . 195 . . Robot Analysis Total . | . . . . . Derelict Logs Recovered . | . . . . . Drone Launches . | . . . . . Drone Recoveries . | . . . . . Exploration | -11 -10 -9 -8 -8 ------------- Run | Yrd Mat Mat Mat Sto Turns Passed 1231 | . 350 281 304 296 Spaces Moved 776 | 1 226 132 189 228 Core 206 | . 2 1 24 179 Treads . | . . . . . Legs 418 | 1 224 76 117 . Wheels . | . . . . . Hover . | . . . . . Flight 152 | . . 55 48 49 Fastest Speed 40 | 120 120 40 40 40 Average Speed 87 | 120 120 92 90 48 Slowest Speed 250 | 120 150 250 120 100 Overloaded Moves . | . . . . . Propulsion Burnouts . | . . . . . Robots Hopped . | . . . . . Potential Cave-ins . | . . . . . Cave-ins Triggered . | . . . . . Exploration Rate (%) 22 | 2 33 23 17 37 Regions Visited 4 Branch Regions 1 Pre-discovered Areas . | . . . . . Known Exits Taken 2 | . . 1 1 . Unknown Exits Taken 2 | 1 1 . . . Scrap Searched . | . . . . . Spaces Dug 4 | . . . 4 . Terrain Destroyed 4 | . . . 4 . Melee 4 | . . . 4 . Projectile . | . . . . . AOE . | . . . . . Terrain Rammed . | . . . . . Walls Destroyed . | . . . . . Machines Disabled . | . . . . . Actions | -11 -10 -9 -8 -8 --------- Run | Yrd Mat Mat Mat Sto Total 1231 | . 283 286 280 382 Wait 329 | . 18 142 46 123 Move 772 | . 225 131 188 228 Hop . | . . . . . Pick Up 22 | . 8 4 8 2 Fast Attach 6 | . 2 1 1 2 Attach 20 | . 5 5 9 1 Detach 6 | . 2 1 3 . Swap 2 | . 2 . . . Drop 13 | . 9 . 4 . Fire 22 | . . . . 22 Melee 39 | . 12 2 21 4 Ram . | . . . . . Kick . | . . . . . Crush . | . . . . . Escape Stasis . | . . . . . Rewire . | . . . . . Trap . | . . . . . Miscellaneous . | . . . . . Route ------- -11/Scrapyard -10/Materials -9/Materials -8/Materials -8/Storage History --------- Turn | Location | Event 1 | -11/Scrapyard | Discovered new exit (range 0) 1 | -11/Scrapyard | Entered Materials 173 | -10/Materials | Discovered new exit (range 10) 305 | -10/Materials | Build established: Mutant 351 | -10/Materials | Entered another Materials area 351 | -9/Materials | Evolved 2 slots: Propulsion x1, Utility x1 577 | -9/Materials | Released all parts (5) 590 | -9/Materials | Discovered new exit (range 16) 612 | -9/Materials | Identified exit to Materials 632 | -9/Materials | Entered another Materials area 632 | -8/Materials | Evolved 2 slots: Propulsion x1, Utility x1 744 | -8/Materials | Garrison activated, responded to threat 850 | -8/Materials | Lost 4 parts (2p2n) 859 | -8/Materials | Discovered new exit (range 20) 918 | -8/Materials | Identified exit to Storage 936 | -8/Materials | Entered Storage 952 | -8/Storage | Assisted by bots powering up and referring to "LRC-V3" 1099 | -8/Storage | Lost 3 parts (1n2w) 1118 | -8/Storage | Core integrity fell below 50% 1160 | -8/Storage | Garrison activated, responded to threat 1166 | -8/Storage | Core integrity fell below 20% 1232 | -8/Storage | Destroyed by Explosive Trap Last Messages --------------- 01160_ G-47 Trooper calls for garrison reinforcements. 01160_ ALERT: Activating Garrison Access S001. 01161_ Critical hit (Burn: +37). 01167_ Particle Gun destroyed. 01182_ ALERT: Hostiles spotted, dispatching reinforcements to Terminal S003. 01184_ Melee Analysis Suite destroyed. 01205_ Connecting with Door Terminal... >>Open(Door) Sealed Heavy Doors opened. 01206_ Acquired Prototype Engine. 01208_ Connecting with Door Terminal... 01211_ K-01 Serf collects debris. 01213_ Acquired Hacking Suite. 01214_ K-01 Serf collects debris. 01218_ Acquired Hardlight Generator. 01221_ K-01 Serf collects debris. 01222_ Hardlight Generator destroyed. 01232_ Triggered Explosive Trap. 01232_ An explosion rips through the floor. Map ----- +----------------------------------------------------+ | ?????????????????????????????? | | ?????????????????????????????? | | ?????????????????????????????? | | ?????????????????????????????? | | ?????????????????????????????? | | ?????????????????????????????? | | ?????????????????????????????? | | ?????????????????????????????? | | ?????????????????????????????? | | ?????????????????????????????? | | ?????????????????????????????? | | ?????????????????????????????? | | ?????????????????????????????? | | ?????????????????????????????? | | ?????????????????????????????? | | ???#+????????????????????????? | | ???# #?????????????????????? # | | #### #####????????????????? # | | +????????????????? # | | #?????????????#""" # | | #?????????????#""" # | | #?????????????#""" # | | ### #?????????????#""" # | | # #?????????????#""" # | | # #?#####??#????# # | | # ### ## #????# @ # | | + #######/##?? | | # ##+### #### #??? | | # # ### ##??# #??? | | #+# # ! ### ##### #??? | | + !+ #??? | | ###+###] ###############+#??? | | ??# T## #??????????????????? | | ??# ### #??????????????????? | | ??# #?# #??????????????????? | | ??###?#####??????????????????? | | ?????????????????????????????? | | | | | | | | | | | | | | | | | | | | | | | | | | | +----------------------------------------------------+ Best States ------------- Heat Dissipation 31 Energy Generation 14 Energy Capacity 250 Matter Stores 300 Matter Capacity 300 Sight Range 16 Robot Scan Range 14 Terrain Scan Density 10 Evasion (%) 62 Melee Accuracy 5 Offensive Hacking 10 Item Schematics ----------------- None Robot Schematics ------------------ None Fabricated ------------ Nothing Repaired ---------- Nothing Studied --------- None Alien Tech Used ----------------- None Achievements -------------- None Challenges ------------ None Game ------ Seed JunkSmartbombTerrabomb Manual? 0 Play Time 00:13:10 Cumulative 17.9 hours Start 2026.08.12 @ 20:55:45 End 2026.08.12 @ 21:20:41 Sessions 1 Manual Loads 0 Difficulty Rogue Special Mode None Game No. 54 Rogue 47 Adventurer 7 Explorer 0 Win Type - Total 0 Types 0/0/0/0/0/0/0/0/0/0 Lore% 11 Gallery% 21 Achievement% 17 Wizard Run 0 Options --------- Layout 0 ASCII 0 Keyboard 0 Movement Mouse Keybinds 0 Fullscreen 1 Font 18/SmallcapsGlow Map View 38x25 Zoom Use 98% Tactical HUD 1 Map Filters NONE Filters NONE Steam 1 RUN: 4b5ac8b8-92a7-415a-b47a-4d93dc113187